bitfinex-derivatives/quotes_SOLF0:USTF0_20250903
["timestamp","ask_amount","ask_price","bid_price","bid_amount"]
[1756871762353,7.8,210.46,210.42,7.17]
[1756871762857,1.73649562,210.47,210.42,7.17]
[1756871763252,1.73649562,210.47,210.41,7.20189737]
[1756871766254,1.73649562,210.48,210.41,7.20189737]
[1756871766647,292.88,210.51,210.45,7.17]
[1756871766855,7.8,210.52,210.45,7.17]
[1756871767056,1.73649562,210.52,210.45,7.17]
[1756871767255,1.73649562,210.52,210.46,1.77016005]
[1756871767955,1.73649562,210.52,210.46,0.03366443]
[1756871768156,9.53649562,210.52,210.46,0.03366443]
[1756871770460,7.8,210.47,210.46,0.03366443]
[1756871772556,1.73649562,210.49,210.46,0.03366443]
[1756871772857,7.26,210.5,210.46,7.35366443]
[1756871774858,1.73649562,210.51,210.46,7.35366443]
[1756871775163,7.26,210.5,210.46,7.35366443]
[1756871775461,7.26,210.5,210.46,0.03366443]
[1756871775656,1.73649562,210.49,210.46,0.03366443]
[1756871775854,8.99649562,210.47,210.46,0.03366443]
[1756871777262,7.26,210.47,210.46,0.03366443]
[1756871777464,8.99649562,210.47,210.46,0.03366443]
[1756871786359,7.26,210.47,210.46,0.03366443]
[1756871786559,8.99649562,210.47,210.46,0.03366443]
[1756871791468,8.99649562,210.47,210.37,7.32]
[1756871791670,7.26,210.41,210.37,7.32]
[1756871792571,7.26,210.41,210.35,7.32]
[1756871792773,7.2921931,210.41,210.35,7.32]
[1756871793472,9.02868872,210.41,210.35,7.32]
[1756871794571,7.26,210.38,210.35,7.32]
[1756871794766,0.0321931,210.41,210.34,7.32]
[1756871794970,0.0321931,210.41,210.35,1.73649562]
[1756871795170,1.73649562,210.42,210.36,7.32]
[1756871795469,0.03570866,210.4,210.38,7.32]
[1756871795665,0.03570866,210.4,210.37,1.73649562]
[1756871795970,0.03570866,210.4,210.38,7.32]
[1756871796173,0.03570866,210.4,210.37,1.73649562]
[1756871796368,0.03570866,210.4,210.38,7.32]
[1756871796576,0.03570866,210.4,210.37,1.73649562]
[1756871796874,0.03570866,210.4,210.39,1.73649562]
[1756871797075,0.03570866,210.4,210.39,9.05649562]
[1756871799872,0.03570866,210.4,210.36,7.32]
[1756871800077,0.03570866,210.4,210.35,1.73649562]
[1756871800277,7.26,210.43,210.36,7.32]
[1756871800479,0.03273492,210.4,210.36,7.32]
[1756871801277,0.03273492,210.4,210.35,1.73649562]
[1756871801478,0.03273492,210.4,210.36,7.32]
[1756871801975,0.03273492,210.4,210.35,1.73649562]
[1756871802176,0.03273492,210.4,210.36,7.32]
[1756871802377,0.03273492,210.4,210.35,1.73649562]
[1756871802577,7.37273492,210.4,210.36,7.32]
[1756871802773,7.37273492,210.4,210.29,39.12714817]
[1756871802774,7.37273492,210.4,210.34,7.32]
[1756871808081,9.10923054,210.4,210.34,7.32]
[1756871808878,7.37273492,210.4,210.34,7.32]
[1756871809083,9.07649562,210.38,210.32,7.32]
[1756871809784,7.34,210.38,210.32,7.32]
[1756871812681,9.07649562,210.38,210.32,7.32]
[1756871813587,7.34,210.38,210.32,7.32]
[1756871814885,0.03273492,210.4,210.32,7.32]
[1756871815084,0.03273492,210.4,210.33,7.32]
[1756871818588,0.03273492,210.4,210.36,7.32]
[1756871819383,0.03273492,210.4,210.35,2.71314527]
[1756871820089,0.03273492,210.4,210.36,7.32]
[1756871820289,0.03273492,210.4,210.35,2.71314527]
[1756871820487,0.03273492,210.4,210.36,7.32]
[1756871820680,0.03273492,210.4,210.35,2.71314527]
[1756871820987,0.03273492,210.4,210.36,7.32]
[1756871821588,7.37273492,210.4,210.35,2.71314527]
[1756871821989,7.37273492,210.4,210.32,7.32]
[1756871835599,10.08588019,210.4,210.32,7.32]
[1756871836702,10.08588019,210.4,210.28,7.62]
[1756871837103,10.05314527,210.4,210.32,3.99570379]
[1756871837304,0.03147955,210.36,210.31,3.99570379]
[1756871837506,7.79,210.35,210.31,11.61570379]
[1756871837704,0.03147955,210.36,210.31,11.61570379]
[1756871837904,7.79,210.35,210.31,11.61570379]
[1756871838310,0.03147955,210.36,210.31,11.61570379]
[1756871838603,3.69299488,210.35,210.31,11.61570379]
[1756871838807,0.03147955,210.36,210.31,11.61570379]
[1756871839007,7.79,210.34,210.31,11.61570379]
[1756871841807,7.79,210.34,210.31,7.62]
[1756871842008,0.03147955,210.36,210.31,7.62]
[1756871842308,7.79,210.34,210.31,7.62]
[1756871842703,7.79,210.34,210.3,3.99570379]
[1756871842704,3.69098987,210.33,210.29,3.99570379]
[1756871842910,7.79,210.35,210.29,3.99570379]
[1756871843204,3.69102396,210.34,210.29,3.99570379]
[1756871843403,7.79,210.32,210.29,3.99570379]
[1756871843605,0.03147955,210.36,210.29,3.99570379]
[1756871843804,14.98206155,210.35,210.29,3.99570379]
[1756871844109,3.6901987,210.34,210.28,3.99570379]
[1756871844406,3.6901987,210.33,210.27,11.61570379]
[1756871844610,0.03147955,210.36,210.27,11.61570379]
[1756871844906,5.2057867,210.32,210.23,117.98]
[1756871845209,2.71314527,210.34,210.23,117.98]
[1756871845210,14.98263665,210.31,210.24,7.62]
[1756871845411,7.19263665,210.3,210.24,7.62]
[1756871845611,7.19263665,210.29,210.23,117.98]
[1756871845811,7.19263665,210.28,210.24,7.62]
[1756871846012,7.19263665,210.27,210.23,117.98]
[1756871846209,7.18765477,210.26,210.24,7.62]
[1756871846412,3.69053556,210.25,210.24,7.62]
[1756871848614,7.18453975,210.25,210.24,7.62]
[1756871850410,7.82330475,210.3,210.24,8.1]
[1756871850613,7.17939872,210.29,210.25,2.71314527]
[1756871850817,3.67812712,210.28,210.25,2.71314527]
[1756871851012,3.67812712,210.27,210.25,2.71314527]
[1756871851213,7.82330475,210.3,210.25,2.71314527]
[1756871851415,3.67871768,210.29,210.25,2.71314527]
[1756871851616,3.67871768,210.28,210.25,2.71314527]
[1756871851916,3.67871768,210.27,210.25,2.71314527]
[1756871852118,7.82330475,210.3,210.24,8.1]
[1756871852311,3.67843934,210.29,210.24,8.1]
[1756871852512,3.67843934,210.28,210.24,8.1]
[1756871852714,3.67843934,210.27,210.24,8.1]
[1756871852920,0.03330475,210.3,210.24,8.1]
[1756871853120,3.67843304,210.29,210.24,8.1]
[1756871853417,0.03330475,210.3,210.24,8.1]
[1756871860422,7.82330475,210.3,210.24,8.1]
[1756871863427,7.82330475,210.3,210.24,0.48]
[1756871873534,7.3,210.25,210.24,0.48]
[1756871877740,1.73853846,210.29,210.24,0.48]
[1756871877946,9.03853846,210.29,210.24,0.48]
[1756871878339,9.03853846,210.29,210.25,7.38]
[1756871879742,7.3,210.29,210.23,7.38]
[1756871881543,7.3,210.29,210.24,1.73853846]
[1756871881745,7.3,210.29,210.25,7.38]
[1756871882139,7.33613911,210.29,210.24,1.73853846]
[1756871882338,7.33613911,210.29,210.25,7.38]
[1756871883045,7.33613911,210.29,210.24,1.73853846]
[1756871883240,7.33613911,210.29,210.14,60.08]
[1756871883241,0.03613911,210.29,210.14,60.08]
[1756871883441,7.3,210.26,210.2,1.73853846]
[1756871883840,7.3,210.24,210.2,9.11853846]
[1756871884742,7.3,210.24,210.21,7.38]
[1756871885746,7.3,210.24,210.13,7.38]
[1756871885947,7.3,210.24,210.12,85.78]
[1756871885948,7.3,210.24,210.17,9.11853846]
[1756871886348,0.03131987,210.23,210.17,9.11853846]
[1756871889544,1.76985833,210.23,210.17,7.38]
[1756871897647,1.76985833,210.23,210.07,301.26713008]
[1756871897648,7.7,210.21,210.11,7.21]
[1756871897853,1.73853846,210.18,210.11,7.21]
[1756871898353,0.03223808,210.17,210.11,7.21]
[1756871899255,7.7,210.15,210.11,7.21]
[1756871899949,7.7,210.15,210.09,7.21]
[1756871900349,0.03223808,210.17,210.12,1.73853846]
[1756871900659,9.43853846,210.19,210.13,7.21]
[1756871901162,0.03402468,210.17,210.12,1.73853846]
[1756871902157,0.03402468,210.17,210.13,7.21]
[1756871902855,0.03402468,210.17,210.12,1.73853846]
[1756871903055,0.03402468,210.17,210.13,7.21]
[1756871903562,0.03402468,210.17,210.12,1.73853846]
[1756871903756,0.03402468,210.17,210.13,7.21]
[1756871903956,0.03402468,210.17,210.12,1.73853846]
[1756871904157,0.03402468,210.17,210.13,7.21]
[1756871904558,0.03402468,210.17,210.12,1.73853846]
[1756871904758,0.03402468,210.17,210.13,7.21]
[1756871905057,0.03402468,210.17,210.12,1.73853846]
[1756871905760,0.03402468,210.17,210.13,7.21]
[1756871907260,0.03402468,210.17,210.12,1.73853846]
[1756871907462,0.03402468,210.17,210.13,7.21]
[1756871908062,0.03402468,210.17,210.07,7.21]
[1756871908359,0.03402468,210.17,210.14,7.21]
[1756871908564,0.03402468,210.17,210.13,1.73853846]
[1756871909163,0.03402468,210.17,210.14,7.21]
[1756871909363,0.03402468,210.17,210.13,1.73853846]
[1756871909663,0.03402468,210.17,210.14,7.21]
[1756871909869,0.03402468,210.17,210.13,1.73853846]
[1756871910067,0.03402468,210.17,210.14,7.21]
[1756871910264,0.03402468,210.17,210.13,1.73853846]
[1756871910464,0.03402468,210.17,210.14,7.21]
[1756871910665,0.03402468,210.17,210.13,1.73853846]
[1756871911167,0.03402468,210.17,210.14,7.21]
[1756871911874,0.03402468,210.17,210.13,1.73853846]
[1756871912569,0.03402468,210.17,210.14,7.21]
[1756871912770,0.03402468,210.17,210.13,1.73853846]
[1756871912976,0.03402468,210.17,210.14,7.21]
[1756871913168,0.03402468,210.17,210.13,1.73853846]
[1756871913568,0.03402468,210.17,210.14,7.21]
[1756871913766,0.03402468,210.17,210.13,1.73853846]
[1756871914272,0.03402468,210.17,210.14,7.21]
[1756871914470,0.03402468,210.17,210.13,1.77340062]
[1756871914971,0.03402468,210.17,210.14,7.21]
[1756871915566,0.03402468,210.17,210.15,1.73853846]
[1756871915764,0.03402468,210.17,210.16,7.21]
[1756871916171,12.9057867,210.26,210.16,9.42853846]
[1756871916376,7.7,210.26,210.16,0.48]
[1756871916580,7.7,210.26,210.18,1.73853846]
[1756871916772,7.7,210.26,210.17,7.21]
[1756871916773,1.73853846,210.25,210.17,7.21]
[1756871916973,1.73853846,210.25,210.18,1.73853846]
[1756871917473,1.73853846,210.25,210.19,0.03508366]
[1756871918985,7.7,210.24,210.19,0.03508366]
[1756871919181,7.7,210.22,210.19,0.03508366]
[1756871920185,1.73853846,210.23,210.19,0.03508366]
[1756871920884,9.43853846,210.24,210.19,0.03508366]
[1756871921280,7.7,210.25,210.19,1.77362212]
[1756871923886,7.7,210.25,210.19,0.03508366]
[1756871926586,12.9057867,210.25,210.19,0.03508366]
[1756871927189,7.7,210.25,210.19,0.03508366]
[1756871928290,12.9057867,210.25,210.19,0.03508366]
[1756871930681,7.7,210.25,210.19,0.03508366]
[1756871931083,7.15,210.25,210.2,1.73853846]
[1756871931281,5.2057867,210.26,210.2,1.73853846]
[1756871931481,7.15,210.25,210.2,1.73853846]
[1756871931687,5.2057867,210.26,210.2,1.73853846]
[1756871931989,7.15,210.25,210.2,1.73853846]
[1756871932184,7.15,210.25,210.21,7.72]
[1756871932582,7.15,210.25,210.19,0.03508366]
[1756871932785,6.94432516,210.26,210.19,0.03508366]
[1756871932786,7.15,210.23,210.19,0.03508366]
[1756871932985,5.2057867,210.25,210.19,0.03508366]
[1756871933481,7.15,210.24,210.19,0.03508366]
[1756871933890,5.2057867,210.25,210.19,0.03508366]
[1756871934191,7.15,210.24,210.19,0.03508366]
[1756871934386,7.15,210.22,210.19,0.03508366]
[1756871934988,7.15,210.2,210.19,0.03508366]
[1756871935194,12.3557867,210.2,210.19,0.03508366]
[1756871935489,7.15,210.2,210.19,0.03508366]
[1756871936082,12.3557867,210.2,210.19,0.03508366]
[1756871937094,7.15,210.2,210.19,0.03508366]
[1756871937790,15.47771692,210.2,210.16,0.48]
[1756871937993,12.44547241,210.17,210.16,0.48]
[1756871939192,10.56562824,210.19,210.09,94.42802845]
[1756871939494,7.15,210.15,210.09,94.42802845]
[1756871941988,7.15,210.15,210.08,7.72]
[1756871944895,0.03125934,210.16,210.09,7.72]
[1756871949499,7.15,210.15,210.09,7.72]
[1756871950187,0.03125934,210.16,210.09,7.72]
[1756871950998,7.15,210.15,210.09,7.72]
[1756871954797,0.03125934,210.16,210.09,7.72]
[1756871958199,7.68,210.15,210.09,7.72]
[1756871960997,0.03125934,210.16,210.09,7.72]
[1756871964109,0.03125934,210.16,210.1,7.68]
[1756871965615,0.03125934,210.16,210.12,2.71791132]
[1756871966112,0.03125934,210.16,210.13,7.68]
[1756871966410,0.03125934,210.16,210.12,2.71791132]
[1756871966610,0.03125934,210.16,210.13,7.68]
[1756871967015,0.03125934,210.16,210.12,2.71791132]
[1756871967208,0.03125934,210.16,210.13,7.68]
[1756871967917,0.03125934,210.16,210.12,2.71791132]
[1756871969118,0.03125934,210.16,210.13,7.68]
[1756871969419,0.03125934,210.16,210.12,2.71791132]
[1756871969619,0.03125934,210.16,210.13,7.68]
[1756871970416,0.03125934,210.16,210.15,10.39791132]
[1756871976318,0.03125934,210.16,210.15,7.68]
[1756871982133,0.03125934,210.16,210.13,10.07791132]
[1756871982343,0.03125934,210.16,210.14,7.36]
[1756871983533,7.65125934,210.16,210.1,2.71791132]
[1756871983735,0.03125934,210.16,210.11,7.36]
[1756871983939,0.03125934,210.16,210.14,7.36]
[1756871984141,0.03125934,210.16,210.13,2.71791132]
[1756871984336,0.03125934,210.16,210.14,7.36]
[1756871984740,0.03125934,210.16,210.13,2.71791132]
[1756871984941,0.03125934,210.16,210.14,7.36]
[1756871985844,0.03125934,210.16,210.13,2.71791132]
[1756871986339,0.03125934,210.16,210.14,7.36]
[1756871987637,0.03125934,210.16,210.13,2.71791132]
[1756871987941,0.03125934,210.16,210.14,7.36]
[1756871988541,0.03125934,210.16,210.13,2.71791132]
[1756871988941,0.03125934,210.16,210.14,7.36]
[1756871989238,0.03125934,210.16,210.1,2.71791132]
[1756871989441,0.03125934,210.16,210.11,7.36]
[1756871990541,0.03125934,210.16,210.1,2.71791132]
[1756871991240,0.03125934,210.16,210.1,10.07791132]
[1756871991441,0.03125934,210.16,210.1,7.36]
[1756871992745,7.65125934,210.16,210.1,7.36]
[1756871993148,7.62,210.15,210.08,79.32]
[1756871995747,7.62,210.15,210.07,7.36]
[1756871997446,7.62,210.15,210.08,1.74038398]
[1756872000251,7.62,210.15,210.07,7.36]
[1756872000449,12.91264768,210.15,210.07,9.10038398]
[1756872001547,1.74038398,210.14,210.07,9.10038398]
[1756872001754,7.62,210.13,210.07,9.10038398]
[1756872001948,7.62,210.13,210.07,1.74038398]
[1756872004149,7.62,210.13,210.06,7.36]
[1756872004351,7.62,210.13,210.06,9.10038398]
[1756872004750,0.03302944,210.12,210.06,9.10038398]
[1756872006153,0.03302944,210.12,210.06,7.36]
[1756872006351,0.03302944,210.12,210.06,9.10038398]
[1756872007652,7.65302944,210.12,210.06,9.10038398]
[1756872008553,14.6860611,210.12,210.03,1.74038398]
[1756872008953,14.65303166,210.12,210.03,1.74038398]
[1756872009255,7.62,210.09,210.03,1.74038398]
[1756872009752,7.62,210.09,210.04,7.36]
[1756872009952,7.62,210.09,209.95,10.20862075]
[1756872010151,7.62,210.07,209.96,7.36]
[1756872010459,7.62,210.07,209.99,1.74038398]
[1756872010655,7.62,210.07,210.0,7.36]
[1756872010656,0.03403869,210.04,210.0,7.36]
[1756872011253,0.03403869,210.04,210.01,1.74038398]
[1756872011659,7.64,210.12,210.03,7.38]
[1756872011954,7.64,210.13,210.07,1.74038398]
[1756872012252,0.03134818,210.1,209.97,28.06]
[1756872012460,7.67134818,210.1,210.04,1.74038398]
[1756872012658,7.64,210.12,210.05,7.38]
[1756872012853,7.67394042,210.09,210.05,7.38]
[1756872013160,7.64,210.08,210.05,7.38]
[1756872013361,7.67394042,210.09,209.98,7.38]
[1756872013556,9.4143244,210.09,210.01,1.74038398]
[1756872013758,7.64,210.09,210.03,1.74038398]
[1756872014057,0.03627569,210.07,210.03,1.74038398]
[1756872014259,0.03627569,210.07,210.04,7.38]
[1756872015160,0.03627569,210.07,210.03,1.74038398]
[1756872015356,0.03627569,210.07,210.05,1.74038398]
[1756872015562,0.03627569,210.07,210.06,7.38]
[1756872019560,0.03627569,210.07,210.04,1.74038398]
[1756872019864,1.74038398,210.09,210.03,7.38]
[1756872020065,9.38038398,210.09,210.03,7.38]
[1756872020270,7.64,210.07,210.03,7.38]
[1756872021266,0.03398186,210.08,210.02,1.74038398]
[1756872021466,0.03398186,210.08,210.03,7.38]
[1756872021865,0.03398186,210.08,210.07,7.38]
[1756872022268,7.64,210.15,210.07,7.38]
[1756872022566,7.64,210.15,209.95,23.29661348]
[1756872022567,0.034299,210.1,210.09,9.12038398]
[1756872029568,0.034299,210.1,210.06,1.74038398]
[1756872029767,0.034299,210.1,210.07,7.38]
[1756872029973,7.64,210.12,210.07,7.38]
[1756872030172,0.03285925,210.11,210.07,7.38]
[1756872030569,0.03285925,210.11,210.06,1.74038398]
[1756872030768,0.03285925,210.11,210.07,7.38]
[1756872030968,0.03285925,210.11,210.06,1.74038398]
[1756872031573,0.03285925,210.11,210.07,7.38]
[1756872031971,7.67285925,210.11,210.07,7.38]
[1756872032173,7.64,210.1,210.06,9.12038398]
[1756872032373,7.64,210.1,210.06,1.74038398]
[1756872032578,7.64,210.1,210.07,7.38]
[1756872033473,7.64,210.1,210.06,9.12038398]
[1756872034374,7.64,210.1,210.06,7.38]
[1756872034579,12.93264768,210.1,210.06,7.38]
[1756872034772,7.64,210.09,210.06,7.38]
[1756872034972,7.64,210.1,210.05,1.74038398]
[1756872035276,5.29264768,210.11,210.06,7.38]
[1756872035477,5.29264768,210.11,210.05,9.12038398]
[1756872035677,0.03628381,210.1,210.05,1.74038398]
[1756872036279,0.03628381,210.1,210.06,7.38]
[1756872036479,0.03628381,210.1,210.05,1.74038398]
[1756872036675,0.03628381,210.1,210.06,7.38]
[1756872036881,0.03628381,210.1,210.05,1.74038398]
[1756872037075,0.03628381,210.1,210.07,1.74038398]
[1756872037380,5.29264768,210.13,210.09,9.12038398]
[1756872037581,5.29264768,210.15,210.13,7.38]
[1756872039487,10.0,210.15,210.13,7.38]
[1756872040782,10.0,210.15,210.14,9.12038398]
[1756872040986,10.0,210.15,210.14,7.38]
[1756872042490,10.0,210.15,210.14,9.12038398]
[1756872046789,10.0,210.15,210.03,7.49]
[1756872046790,7.36,210.14,210.03,7.49]
[1756872046984,7.36,210.14,210.08,1.74038398]
[1756872047390,7.39618939,210.13,210.08,9.23038398]
[1756872047590,7.39618939,210.13,210.09,7.49]
[1756872047795,7.39618939,210.13,210.1,1.74038398]
[1756872048292,7.36,210.12,210.01,7.49]
[1756872048593,10.0,210.15,210.08,1.74038398]
[1756872048784,7.36,210.14,210.08,1.74038398]
[1756872048985,0.03566233,210.09,210.08,1.74038398]
[1756872049992,0.03566233,210.09,210.08,9.23038398]
[1756872051094,0.03566233,210.09,210.08,7.49]
[1756872051296,0.03566233,210.09,210.08,9.23038398]
[1756872057193,10.0,210.15,210.08,9.23038398]
[1756872057401,10.0,210.15,210.14,7.49]
[1756872057591,10.0,210.15,210.12,7.49]
[1756872057991,10.0,210.15,210.11,2.71812902]
[1756872058199,10.0,210.15,210.12,7.49]
[1756872058400,10.0,210.15,210.11,2.71812902]
[1756872058599,10.0,210.15,210.11,2.75430585]
[1756872059002,10.0,210.15,210.12,7.49]
[1756872059401,10.0,210.15,210.11,2.75430585]
[1756872059598,10.0,210.15,210.12,7.49]
[1756872059797,10.0,210.15,210.11,2.75430585]
[1756872060498,10.0,210.15,210.14,2.71812902]
[1756872060699,10.0,210.15,210.14,10.20812902]
[1756872065002,17.36,210.15,210.11,2.75430585]
[1756872065303,17.36,210.15,210.11,10.24430585]
[1756872065504,17.36,210.15,210.12,7.49]
[1756872065798,10.0,210.15,210.11,7.52617683]
[1756872066103,17.36,210.15,210.11,7.52617683]
[1756872066499,7.36,210.14,210.11,0.03617683]
[1756872067296,10.0,210.15,210.11,0.03617683]
[1756872067501,7.36,210.14,210.11,0.03617683]
[1756872067704,10.0,210.15,210.11,0.03617683]
[1756872068205,7.36,210.14,210.11,0.03617683]
[1756872068400,10.0,210.15,210.11,0.03617683]
[1756872068602,7.36,210.14,210.11,0.03617683]
[1756872069001,10.0,210.15,210.11,0.03617683]
[1756872069203,7.36,210.14,210.11,0.03617683]
[1756872069603,10.0,210.15,210.11,0.03617683]
[1756872070304,7.36,210.14,210.11,0.03617683]
[1756872070497,10.0,210.15,210.11,0.03617683]
[1756872070702,7.36,210.14,210.11,0.03617683]
[1756872071102,10.0,210.15,210.11,0.03617683]
[1756872071508,7.9,210.14,210.11,0.03617683]
[1756872071700,10.0,210.15,210.11,0.03617683]
[1756872071899,7.9,210.14,210.11,0.03617683]
[1756872074411,15.29264768,210.15,210.11,0.03617683]
[1756872074709,7.9,210.14,210.11,0.03617683]
[1756872074910,15.29264768,210.15,210.11,0.03617683]
[1756872075311,7.9,210.14,210.11,0.03617683]
[1756872075710,13.19264768,210.14,210.11,0.03617683]
[1756872076110,7.9,210.12,210.0,2.71812902]
[1756872076410,7.9,210.09,210.0,2.71812902]
[1756872076611,13.19316299,210.09,210.0,2.71812902]
[1756872077510,7.9,210.06,210.0,2.71812902]
[1756872078512,0.03284602,210.07,209.97,10.63812902]
[1756872078810,5.32600901,210.07,209.97,10.63812902]
[1756872079110,7.9,210.06,209.97,10.63812902]
[1756872079511,7.9,210.06,209.95,7.92]
[1756872080212,7.93534944,210.03,209.95,7.92]
[1756872088920,7.93534944,210.03,209.95,10.63812902]
[1756872089112,0.03534944,210.03,209.95,7.92]
[1756872089418,7.9,210.02,209.95,7.92]
[1756872093519,7.9,210.02,209.95,10.63812902]
[1756872093815,0.03534944,210.03,209.96,7.92]
[1756872097619,7.9,210.02,209.96,7.92]
[1756872098026,7.9,210.02,209.91,7.92]
[1756872098220,7.9,210.02,209.93,7.92]
[1756872098725,0.03234485,210.0,209.93,7.92]
[1756872099719,0.03234485,210.0,209.93,10.63812902]
[1756872100726,7.93234485,210.0,209.93,10.63812902]
[1756872102723,7.93234485,210.0,209.93,7.92]
[1756872111930,7.93234485,210.0,209.9,7.48]
[1756872112331,7.9,210.0,209.9,7.48]
[1756872112529,7.20393479,209.97,209.9,7.48]
[1756872113228,7.20393479,209.97,209.89,2.71812902]
[1756872113431,7.20393479,209.97,209.9,7.48]
[1756872113626,5.29316299,210.03,209.9,7.48]
[1756872113827,7.17,210.08,210.01,7.48]
[1756872114531,7.17,210.08,209.92,101.68386451]
[1756872114737,2.71812902,210.11,209.97,10.19812902]
[1756872114936,2.71812902,210.11,210.02,0.03440377]
[1756872115135,7.17,210.1,210.02,0.03440377]
[1756872116329,7.17,210.1,210.02,7.51440377]
[1756872116635,7.17,210.1,210.07,7.48]
[1756872117540,7.17,210.1,210.08,1.74048856]
[1756872118137,0.48,210.13,210.08,1.74048856]
[1756872118336,7.17,210.12,210.08,1.74048856]
[1756872118534,7.17,210.12,210.06,1.77392133]
[1756872121443,1.74048856,210.1,210.06,0.03343277]
[1756872121638,7.17,210.09,210.06,0.03343277]
[1756872122340,1.74048856,210.1,210.06,0.03343277]
[1756872122534,7.17,210.09,210.06,0.03343277]
[1756872122939,1.74048856,210.1,210.06,0.03343277]
[1756872123343,7.17,210.09,210.06,0.03343277]
[1756872124242,7.17,210.08,210.06,0.03343277]
[1756872124440,5.29316299,210.09,210.06,0.03343277]
[1756872124645,7.17,210.08,210.06,0.03343277]
[1756872124841,5.29316299,210.09,210.06,0.03343277]
[1756872125040,7.17,210.08,210.06,0.03343277]
[1756872125242,5.29316299,210.09,210.06,0.03343277]
[1756872125446,7.17,210.08,210.06,0.03343277]
[1756872125844,9.39048856,210.08,210.06,0.03343277]
[1756872126141,14.68365155,210.08,210.06,0.03343277]
[1756872127144,14.68365155,210.08,209.96,7.48]
[1756872127348,7.17,210.02,209.96,7.48]
[1756872127542,7.17,210.02,209.95,1.74048856]
[1756872127543,5.29316299,210.06,209.99,1.74048856]
[1756872128147,7.17,210.05,209.98,9.22048856]
[1756872128448,7.20046606,210.05,209.98,9.22048856]
[1756872129448,8.94095462,210.05,209.98,9.22048856]
[1756872130653,14.23411761,210.05,209.98,7.48]
[1756872131753,8.94095462,210.05,209.98,7.48]
[1756872132643,8.94095462,210.05,209.96,1.74048856]
[1756872132644,1.74048856,210.03,209.96,1.74048856]
[1756872132852,1.74048856,210.01,209.94,9.49048856]
[1756872133049,7.55,210.0,209.94,9.49048856]
[1756872133352,1.74048856,209.99,209.86,293.46]
[1756872133652,7.55,209.98,209.91,1.74048856]
[1756872134154,0.03117922,209.95,209.92,7.75]
[1756872134556,0.03117922,209.95,209.93,9.49048856]
[1756872135257,0.03117922,209.95,209.94,7.75]
[1756872136255,0.03117922,209.95,209.94,9.49048856]
[1756872137957,0.03117922,209.95,209.94,7.75]
[1756872138260,0.03117922,209.95,209.94,9.49048856]
[1756872141062,0.03117922,209.95,209.94,7.75]
[1756872145971,7.58117922,209.95,209.91,9.49048856]
[1756872146365,7.58117922,209.95,209.92,7.75]
[1756872146560,0.03117922,209.95,209.92,7.75]
[1756872147166,0.03117922,209.95,209.91,1.74048856]
[1756872147167,7.55,209.94,209.91,1.74048856]
[1756872147376,0.03117922,209.95,209.92,7.75]
[1756872149372,0.03117922,209.95,209.89,1.74048856]
[1756872149571,0.03117922,209.95,209.89,9.49048856]
[1756872149769,9.29048856,209.96,209.89,9.49048856]
[1756872149969,0.03276549,209.94,209.9,7.75]
[1756872150168,0.03276549,209.94,209.83,7.75]
[1756872150368,0.03276549,209.94,209.89,1.74048856]
[1756872150568,0.03276549,209.94,209.9,7.75]
[1756872151165,0.03276549,209.94,209.89,1.74048856]
[1756872151672,0.03276549,209.94,209.85,7.75]
[1756872151871,0.03276549,209.94,209.88,1.74048856]
[1756872152073,0.03276549,209.94,209.91,7.75]
[1756872152472,0.03276549,209.94,209.9,1.74048856]
[1756872152673,0.03276549,209.94,209.91,7.75]
[1756872153970,0.03276549,209.94,209.89,1.74048856]
[1756872154373,0.03276549,209.94,209.91,1.74048856]
[1756872154574,0.03276549,209.94,209.92,7.75]
[1756872154765,0.03276549,209.94,209.91,1.74048856]
[1756872155264,0.03276549,209.94,209.92,7.75]
[1756872159077,0.03276549,209.94,209.91,1.74048856]